fUST/lending_fUST_20240813
["ID","MTS","AMOUNT","RATE_DAILY","PERIOD"]
[334743937,1723528265112,-1295.46,0.00015616,2]
[334743938,1723528265125,-1371.68,0.00015616,2]
[334743939,1723528265134,-842.94,0.00015616,2]
[334743940,1723528265143,-500.0,0.00015616,2]
[334743941,1723528265153,-586.24,0.00015616,2]
[334743942,1723528265164,-500.0,0.00015616,2]
[334743943,1723528265173,-709.22,0.00015616,2]
[334743944,1723528265182,-635.04,0.00015616,2]
[334743945,1723528265193,-1649.1,0.00015616,2]
[334743946,1723528265202,-1442.41,0.00015616,2]
[334743947,1723528265211,-500.0,0.00015616,2]
[334743948,1723528265220,-500.0,0.00015616,2]
[334743949,1723528265229,-669.84,0.00015616,2]
[334743950,1723528265238,-1298.96,0.00015616,2]
[334743951,1723528265248,-630.11,0.00015616,2]
[334743952,1723528265258,-927.44,0.00015616,2]
[334743953,1723528265267,-5906.63,0.00015616,2]
[334743954,1723528265277,-760.69,0.00015616,2]
[334743955,1723528265287,-500.0,0.00015616,2]
[334743956,1723528265296,-508.67,0.00015616,2]
[334743957,1723528265306,-2025.26,0.00015616,2]
[334743958,1723528265315,-1085.22,0.00015616,2]
[334743959,1723528265324,-806.94,0.00015616,2]
[334743960,1723528265333,-2737.51,0.00015616,2]
[334743961,1723528265343,-500.0,0.00015616,2]
[334743962,1723528265351,-500.0,0.00015616,2]
[334743963,1723528265361,-596.13,0.00015616,2]
[334743964,1723528265370,-6282.86,0.00015616,2]
[334743965,1723528265380,-818.75,0.00015616,2]
[334743966,1723528265390,-500.0,0.00015616,2]
[334743967,1723528265401,-500.0,0.00015616,2]
[334743968,1723528265412,-368.5308972,0.00015616,2]
[334743969,1723528265423,-288.3473829,0.00015616,2]
[334743970,1723528265434,-589.2410937,0.00015616,2]
[334743971,1723528265443,-158.0,0.0001566,2]
[334743972,1723528265453,-5262.32702119,0.00015707,2]
[334743973,1723528265463,-1604.49259508,0.00015707,2]
[334743974,1723528265472,-2280.94328091,0.00015707,3]
[334743975,1723528265481,-1500.0,0.00015707,2]
[334743976,1723528265490,-1612.50236141,0.00015707,2]
[334743977,1723528265500,-42388.53220002,0.00015707,2]
[334743978,1723528265509,-14255.47414227,0.00015708,2]
[334743979,1723528265519,-1164.18655458,0.00015708,2]
[334743980,1723528265528,-9653.694874,0.00015708,2]
[334743981,1723528265538,-2126.93180055,0.00015708,2]
[334743982,1723528265548,-3091.13727691,0.00015708,2]
[334743983,1723528265557,-1993.92519037,0.00015708,2]
[334743984,1723528265567,-2711.07610904,0.00015708,2]
[334743985,1723528265577,-3496.00569352,0.00015708,2]
[334743986,1723528265793,-3513.73013066,0.00015708,2]
[334743987,1723528265802,-1562.72058678,0.00015708,2]
[334743988,1723528266155,-151.0,0.00013678,2]
[334743989,1723528266165,-653.928073,0.00013688,2]
[334743990,1723528266175,-153.512548,0.00013688,2]
[334743991,1723528266187,-151.0,0.00013698,2]
[334743992,1723528266197,-653.928073,0.00013698,2]
[334743993,1723528266210,-151.0,0.00013698,2]
[334743994,1723528266221,-653.928073,0.00013698,2]
[334743995,1723528266233,-156.302187,0.00013698,2]
[334743996,1723528266243,-653.928073,0.00013698,2]
[334743997,1723528266252,-653.928073,0.00013698,2]
[334743998,1723528266261,-653.928073,0.00013698,2]
[334743999,1723528266272,-653.928073,0.00013698,2]
[334744000,1723528266283,-653.928073,0.00013698,2]
[334744001,1723528266292,-244.3,0.00014486,2]
[334744002,1723528266303,-1376.63,0.00015068,2]
[334744003,1723528266312,-1376.63,0.00015342,2]
[334744004,1723528266321,-1376.63,0.00015616,2]
[334744005,1723528266331,-578.90403497,0.00015708,2]
[334744006,1723528266340,-1765.51331177,0.00015708,2]
[334744007,1723528266349,-2165.02531007,0.00015708,2]
[334744008,1723528266360,-1384.50193288,0.00015708,2]
[334744009,1723528266369,-1730.69354329,0.00015708,2]
[334744010,1723528266378,-15780.25565343,0.00015709,2]
[334744011,1723528266484,-360.658415,0.00013668,2]
[334744012,1723528266494,-653.928073,0.00013698,2]
[334744013,1723528266504,-917.99653272,0.00015709,2]
[334744014,1723528266523,-2837.65445789,0.00015709,2]
[334744015,1723528266534,-2349.49999998,0.00015709,2]
[334744016,1723528266939,-169.56073903,0.00013678,2]
[334744017,1723528266950,-261.81,0.00013678,2]
[334744018,1723528267366,225.75348869,9.9e-05,2]
[334744019,1723528267509,171.28,0.00010959,2]
[334744020,1723528268240,25.29178265,0.00010959,2]
[334744023,1723528495684,1000.0,0.00025,60]
[334744033,1723528746647,851.3,0.00013,10]
[334744047,1723529227147,-1366.86681155,9.8e-05,2]
[334744048,1723529227171,-160.0,9.998e-05,2]
[334744049,1723529227192,-154.74467129,9.999e-05,2]
[334744050,1723529227213,-414.92788166,9.999e-05,2]
[334744051,1723529227235,-154.78330261,9.999e-05,2]
[334744052,1723529227256,-932.99527997,9.999e-05,2]
[334744053,1723529227277,-155.30339985,9.999e-05,2]
[334744054,1723529227301,-320.08358525,9.999e-05,2]
[334744055,1723529227322,-205.42133969,9.999e-05,2]
[334744056,1723529227344,-159.42310464,9.999e-05,2]
[334744057,1723529227366,-155.36726099,9.999e-05,2]
[334744058,1723529227387,-532.17909802,9.999e-05,2]
[334744059,1723529227409,-810.88959894,9.999e-05,2]
[334744060,1723529227431,-154.74467129,9.999e-05,2]
[334744061,1723529227458,-251.45219724,9.999e-05,2]
[334744062,1723529227479,-601.1945502,9.999e-05,2]
[334744063,1723529227500,-156.68679737,9.999e-05,2]
[334744064,1723529227525,-154.79103211,9.999e-05,2]
[334744065,1723529227549,-204.38485604,9.999e-05,2]
[334744066,1723529227570,-189.9631639,9.999e-05,2]
[334744067,1723529227593,-209.42836987,9.999e-05,2]
[334744068,1723529227616,-183.31414419,9.999e-05,2]
[334744069,1723529227637,-522.64528622,9.999e-05,2]
[334744070,1723529227658,-250.59023246,9.999e-05,2]
[334744071,1723529227681,-331.67579309,9.999e-05,2]
[334744073,1723529232086,-163.13492632,9.999e-05,2]
[334744074,1723529232106,-154.76784823,9.999e-05,2]
[334744075,1723529232127,-124.14378504,9.999e-05,2]
[334744082,1723529349113,-128.72295386,9.999e-05,2]
[334744083,1723529349138,-174.58414756,9.999e-05,2]
[334744084,1723529349161,-158.63524894,9.999e-05,2]
[334744085,1723529349188,-1652.49101254,9.999e-05,2]
[334744086,1723529349210,-3608.33001858,9.999e-05,2]
[334744087,1723529349233,-120.39948472,9.999e-05,2]
[334744088,1723529354380,-84.63768786,9.999e-05,2]
[334744089,1723529354404,-183.21678917,9.999e-05,2]
[334744090,1723529354426,-157.83841247,9.999e-05,2]
[334744091,1723529354448,-288.10768054,0.0001,2]
[334744092,1723529354475,-413.41235077,0.0001,2]
[334744093,1723529354497,-539.92,0.00010959,2]
[334744094,1723529354521,-449.93,0.00010959,2]
[334744095,1723529354547,-374.94,0.00010959,2]
[334744096,1723529354574,-312.45,0.00010959,2]
[334744097,1723529354595,-260.38,0.00010959,2]
[334744098,1723529354616,-216.98,0.00010959,2]
[334744099,1723529354637,-180.82,0.00010959,2]
[334744100,1723529354658,-150.68,0.00010959,2]
[334744101,1723529354682,-753.44,0.00010959,2]
[334744102,1723529354707,-167.731004,0.0001162,2]
[334744103,1723529354736,-167.731004,0.00011666,2]
[334744104,1723529354759,-167.731004,0.00011713,2]
[334744105,1723529354783,-167.731004,0.0001176,2]
[334744106,1723529354805,-167.731004,0.00011806,2]
[334744107,1723529354827,-167.731004,0.00011853,2]
[334744108,1723529354849,-167.731004,0.00011899,2]
[334744109,1723529354871,-167.731004,0.00011946,2]
[334744110,1723529354896,-167.731004,0.00011992,2]
[334744111,1723529354917,-167.731004,0.00012039,2]
[334744112,1723529354944,-167.731004,0.00012086,2]
[334744113,1723529354970,-154.79875236,0.0001212,2]
[334744114,1723529354991,-230.64760299,0.0001212,2]
[334744115,1723529355015,-167.731004,0.00012132,2]
[334744116,1723529355037,-167.731004,0.00012179,2]
[334744117,1723529355060,-167.731004,0.00012225,2]
[334744118,1723529355083,-1000.0,0.00013,4]
[334744119,1723529355104,-586.79647889,0.00013,2]
[334744120,1723529355125,-1994.33125572,0.000135,2]
[334744121,1723529355146,-2593.89125958,0.00013567,2]
[334744122,1723529355167,-384.90262392,0.00013588,2]
[334744123,1723529355186,-271.6571318,0.00013588,2]
[334744124,1723529355210,-3111.19491287,0.00013597,2]
[334744125,1723529355230,-4435.68683399,0.00013598,2]
[334744150,1723529432126,-277.06088071,9.999e-05,2]
[334744152,1723529432135,-304.03917992,0.0001212,2]
[334744154,1723529432145,-548.79458329,0.00013598,2]
[334744176,1723529438275,-2008.04562893,0.00013588,2]
[334744177,1723529438286,-1039.61437107,0.00013598,2]
[334744179,1723529438734,-1083.8394677,0.00013598,2]
[334744180,1723529438747,-3155.57675139,0.00013598,2]
[334744181,1723529438757,-286.80586129,0.00013687,2]
[334744182,1723529438766,-258075.544657,0.00013688,2]
[334744183,1723529438775,-37520.26538983,0.00013688,2]
[334744184,1723529438785,-129037.772328,0.00013689,2]
[334744185,1723529438795,-160.1435988,0.00013698,2]
[334744186,1723529438806,-500.0,0.00013698,2]
[334744187,1723529438818,-511.14859023,0.00013698,2]
[334744188,1723529438828,-388.19965429,0.00013698,2]
[334744189,1723529438839,-571.7495772,0.00013698,2]
[334744190,1723529438848,-500.0,0.00013698,2]
[334744191,1723529438858,-502.31401291,0.00013698,2]
[334744192,1723529438868,-243.18636395,0.00013698,2]
[334744193,1723529438878,-500.0,0.00013698,2]
[334744194,1723529438887,-501.88324944,0.00013698,2]
[334744195,1723529438897,-500.0,0.00013698,2]
[334744196,1723529438906,-500.0,0.00013698,2]
[334744197,1723529438917,-500.0,0.00013698,2]
[334744198,1723529438927,-500.0,0.00013698,2]
[334744199,1723529438937,-250.0,0.00013698,2]
[334744200,1723529438947,-500.0,0.00013698,2]
[334744201,1723529438956,-500.0,0.00013698,2]
[334744202,1723529438966,-570.49,0.00013698,2]
[334744203,1723529438975,-500.0,0.00013698,2]
[334744204,1723529438985,-501.21147258,0.00013698,2]
[334744205,1723529438995,-500.0,0.00013698,2]
[334744206,1723529439006,-500.0,0.00013698,2]
[334744207,1723529439021,-500.0,0.00013698,2]
[334744208,1723529439031,-500.0,0.00013698,2]
[334744209,1723529439046,-514.60538116,0.00013698,2]
[334744210,1723529439056,-500.0,0.00013698,2]
[334744211,1723529439065,-648.18,0.00013698,2]
[334744212,1723529439075,-500.0,0.00013698,2]
[334744213,1723529439085,-500.0,0.00013698,2]
[334744214,1723529439095,-1402.4,0.00013698,2]
[334744215,1723529439105,-500.0,0.00013698,2]
[334744216,1723529439115,-500.0,0.00013698,2]
[334744217,1723529439124,-500.0,0.00013698,2]
[334744218,1723529439136,-500.0,0.00013698,2]
[334744219,1723529439145,-503.47971931,0.00013698,2]
[334744220,1723529439155,-500.0,0.00013698,2]
[334744221,1723529439164,-500.0,0.00013698,2]
[334744222,1723529439174,-500.0,0.00013698,2]
[334744223,1723529439183,-500.0,0.00013698,2]
[334744224,1723529439192,-500.0,0.00013698,2]
[334744225,1723529439202,-500.0,0.00013698,2]
[334744226,1723529439211,-500.0,0.00013698,2]
[334744227,1723529439221,-500.0,0.00013698,2]
[334744228,1723529439230,-500.0,0.00013698,2]
[334744229,1723529439239,-643.6,0.00013698,2]
[334744230,1723529439250,-500.0,0.00013698,2]
[334744231,1723529439263,-500.0,0.00013698,2]
[334744232,1723529439272,-500.0,0.00013698,2]
[334744233,1723529439282,-500.0,0.00013698,2]
[334744234,1723529439291,-500.0,0.00013698,2]
[334744235,1723529439301,-500.0,0.00013698,2]
[334744236,1723529439310,-500.0,0.00013698,2]
[334744237,1723529439320,-500.0,0.00013698,2]
[334744238,1723529439329,-1028.34,0.00013698,2]
[334744239,1723529439338,-500.0,0.00013698,2]
[334744240,1723529439347,-552.22,0.00013698,2]
[334744241,1723529439357,-500.0,0.00013698,2]
[334744242,1723529439367,-500.0,0.00013698,2]
[334744243,1723529439376,-500.0,0.00013698,2]
[334744244,1723529439386,-500.0,0.00013698,2]
[334744245,1723529439396,-500.0,0.00013698,2]
[334744246,1723529439408,-500.0,0.00013698,2]
[334744247,1723529439419,-500.0,0.00013698,2]
[334744248,1723529439430,-657.56,0.00013698,2]
[334744249,1723529439440,-646.01,0.00013698,2]
[334744250,1723529439450,-500.0,0.00013698,2]
[334744251,1723529439461,-500.0,0.00013698,2]
[334744252,1723529439471,-509.45464959,0.00013698,2]
[334744253,1723529439481,-884.17,0.00013698,2]
[334744254,1723529439492,-500.0,0.00013698,2]
[334744255,1723529439506,-3789.14555569,0.00013698,2]
[334744278,1723529440280,-2008.04562893,0.00013659,2]
[334744279,1723529440290,-1184.78444431,0.00013698,2]
[334744280,1723529440299,-500.0,0.00013698,2]
[334744281,1723529440309,-760.1,0.00013698,2]
[334744282,1723529440321,-605.92,0.00013698,2]
[334744283,1723529440331,-500.0,0.00013698,2]
[334744284,1723529440341,-2191.37,0.00013698,2]
[334744285,1723529440353,-500.0,0.00013698,2]
[334744286,1723529440362,-500.0,0.00013698,2]
[334744287,1723529440371,-500.0,0.00013698,2]
[334744288,1723529440381,-515.05,0.00013698,2]
[334744289,1723529440390,-895.69,0.00013698,2]
[334744290,1723529440401,-618.46,0.00013698,2]
[334744291,1723529440413,-4460.62,0.00013698,2]
[334744292,1723529440425,-727.28,0.00013698,2]
[334744293,1723529440436,-500.0,0.00013698,2]
[334744294,1723529440447,-500.0,0.00013698,2]
[334744295,1723529440458,-500.0,0.00013698,2]
[334744296,1723529440468,-500.0,0.00013698,2]
[334744297,1723529440478,-1042.65,0.00013698,2]
[334744298,1723529440487,-500.0,0.00013698,2]
[334744299,1723529440501,-934.86,0.00013698,2]
[334744300,1723529440511,-500.0,0.00013698,2]
[334744301,1723529440523,-500.0,0.00013698,2]
[334744302,1723529440534,-792.17,0.00013698,2]
[334744303,1723529440546,-3514.49,0.00013698,2]
[334744304,1723529440557,-1009.53,0.00013698,2]
[334744305,1723529440568,-892.64,0.00013698,2]
[334744306,1723529440577,-883.9,0.00013698,2]
[334744307,1723529440587,-500.0,0.00013698,2]
[334744308,1723529440597,-500.0,0.00013698,2]
[334744309,1723529440607,-3091.02,0.00013698,2]
[334744310,1723529440616,-493.74303217,0.00013698,2]
[334744325,1723529443222,-21.61391986,0.00013698,2]
[334744354,1723529447735,-154.96685308,0.0001,2]
[334744355,1723529447744,-353.28304797,0.00013698,2]
[334744356,1723529447754,-25.56209495,0.00013698,2]
[334744416,1723530447510,-407.0,9.898e-05,2]
[334744417,1723530447532,-213.0,9.998e-05,2]
[334744418,1723530447554,-194.0,9.998e-05,2]
[334744419,1723530447576,-569.05372197,9.999e-05,2]
[334744420,1723530447598,-180.67948358,9.999e-05,2]
[334744421,1723530447620,-154.96300286,9.999e-05,2]
[334744423,1723530447641,-189.9631639,9.999e-05,2]
[334744424,1723530447664,-250.59023246,9.999e-05,2]
[334744425,1723530447686,-156.36757405,9.999e-05,2]
[334744426,1723530447708,-159.33923194,9.999e-05,2]
[334744427,1723530447731,-600.74673084,9.999e-05,2]
[334744428,1723530447753,-154.79875236,9.999e-05,2]
[334744429,1723530447776,-319.46978654,9.999e-05,2]
[334744430,1723530447799,-522.96413212,9.999e-05,2]
[334744431,1723530447826,-442.82006061,9.999e-05,2]
[334744432,1723530447849,-154.74467129,9.999e-05,2]
[334744433,1723530447871,-543.67907992,9.999e-05,2]
[334744434,1723530447894,-156.73959383,9.999e-05,2]
[334744435,1723530447917,-728.34861839,9.999e-05,2]
[334744436,1723530447939,-306.51028623,9.999e-05,2]
[334744437,1723530448155,-288.10768054,0.0001,2]
[334744438,1723530448177,-413.41235077,0.0001,2]
[334744439,1723530448201,-18547.00041796,0.0001094,2]
[334744440,1723530448315,-397.22034674,0.0001094,2]
[334744443,1723530553141,-273.37336231,9.9e-05,2]
[334744444,1723530553164,-103.10141258,9.999e-05,2]
[334744445,1723530565453,-893.35826724,9.899e-05,2]
[334744446,1723530565476,-170.5986373,9.999e-05,2]
[334744447,1723530565498,-154.74467129,9.999e-05,2]
[334744448,1723530565520,-157.00320308,9.999e-05,2]
[334744449,1723530565541,-183.31414419,9.999e-05,2]
[334744450,1723530565563,-227.69761138,9.999e-05,2]
[334744451,1723530565584,-155.07603855,9.999e-05,2]
[334744452,1723530565611,-810.1149959,9.999e-05,2]
[334744453,1723530565634,-2833.28421105,0.0001094,2]
[334744454,1723530565657,-5945.7792353,0.0001094,2]
[334744455,1723530565680,-185.0,0.00010959,2]
[334744456,1723530565701,-154.17,0.00010959,2]
[334744457,1723530565724,-770.86,0.00010959,2]
[334744458,1723530565748,-157.647062,0.00011358,2]
[334744459,1723530565772,-157.647062,0.00011654,2]
[334744460,1723530565796,-157.647062,0.0001195,2]
[334744461,1723530565817,-1320.28388576,0.00013,2]
[334744462,1723530565842,-250.59023246,0.0001326,2]
[334744463,1723530565864,-205.28735846,0.0001326,2]
[334744464,1723530565887,-290.84316921,0.00013475,2]
[334744465,1723530565909,-1514.94208676,0.00013598,2]
[334744466,1723530565932,-5323.40502986,0.00013632,2]
[334744467,1723530565954,-1514.94208676,0.00013667,2]
[334744468,1723530565978,-2344.68815694,0.00013688,2]
[334744555,1723530638650,-273.37336231,9.9e-05,2]
[334744556,1723530638660,-250.59023246,9.999e-05,2]
[334744557,1723530638670,-223.26161126,9.999e-05,2]
[334744558,1723530638679,-180.67948358,9.999e-05,2]
[334744559,1723530638689,-158.63524894,0.0001094,2]
[334744560,1723530638698,-593.46006116,0.0001094,2]
[334744561,1723530638710,-2839.21151751,0.0001094,2]
[334744562,1723530638720,-158.63524894,0.0001094,2]
[334744563,1723530638729,-159.090909,0.0001324,2]
[334744564,1723530638739,-183.31414419,0.0001326,2]
[334744565,1723530638748,-159.090909,0.00013309,2]
[334744566,1723530638757,-159.090909,0.00013378,2]
[334744567,1723530638766,-159.090909,0.00013447,2]
[334744568,1723530638775,-159.090909,0.00013516,2]
[334744569,1723530638786,-159.090909,0.00013585,2]
[334744570,1723530638795,-2701.97006208,0.00013598,2]
[334744571,1723530638805,-159.090909,0.00013654,2]
[334744572,1723530638814,-18760.13269491,0.00013688,2]
[334744573,1723530638823,-327716.60835706,0.00013688,2]
[334744574,1723530638833,-500.0,0.00013698,2]
[334744575,1723530638842,-265.22901055,0.00013698,2]
[334744576,1723530638853,-215.78355761,0.00013698,2]
[334744578,1723530638864,-340.54944627,0.00013698,2]
[334744580,1723530638874,-500.0,0.00013698,2]
[334744582,1723530638883,-500.0,0.00013698,2]
[334744583,1723530638892,-500.0,0.00013698,2]
[334744585,1723530638902,-500.0,0.00013698,2]
[334744587,1723530638911,-500.0,0.00013698,2]
[334744589,1723530638922,-500.0,0.00013698,2]
[334744591,1723530638932,-500.0,0.00013698,2]
[334744593,1723530638942,-500.0,0.00013698,2]
[334744595,1723530638951,-500.0,0.00013698,2]
[334744597,1723530638961,-500.0,0.00013698,2]
[334744599,1723530638970,-500.0,0.00013698,2]
[334744601,1723530638981,-500.0,0.00013698,2]
[334744603,1723530638990,-500.0,0.00013698,2]
[334744605,1723530639000,-466.94073032,0.00013698,2]
[334744607,1723530639009,-500.0,0.00013698,2]
[334744609,1723530639018,-500.0,0.00013698,2]
[334744611,1723530639028,-500.0,0.00013698,2]
[334744613,1723530639041,-500.0,0.00013698,2]
[334744615,1723530639050,-500.0,0.00013698,2]
[334744617,1723530639060,-500.0,0.00013698,2]
[334744619,1723530639069,-300.0,0.00013698,2]
[334744621,1723530639078,-500.0,0.00013698,2]
[334744623,1723530639088,-411.76147416,0.00013698,2]
[334744625,1723530639097,-500.0,0.00013698,2]
[334744627,1723530639106,-500.0,0.00013698,2]
[334744628,1723530639115,-500.0,0.00013698,2]
[334744630,1723530639125,-1577.7,0.00013698,2]
[334744632,1723530639134,-625.05784409,0.00013698,2]
[334744634,1723530639144,-501.99,0.00013698,2]
[334744636,1723530639153,-500.0,0.00013698,2]
[334744638,1723530639163,-500.0,0.00013698,2]
[334744640,1723530639172,-507.91,0.00013698,2]
[334744642,1723530639182,-558.13731337,0.00013698,2]
[334744644,1723530639191,-500.0,0.00013698,2]
[334744646,1723530639201,-500.0,0.00013698,2]
[334744648,1723530639210,-500.0,0.00013698,2]
[334744650,1723530639220,-500.0,0.00013698,2]
[334744652,1723530639229,-1093.74,0.00013698,2]
[334744654,1723530639238,-500.0,0.00013698,2]
[334744656,1723530639247,-500.0,0.00013698,2]
[334744658,1723530639256,-500.0,0.00013698,2]
[334744660,1723530639266,-500.0,0.00013698,2]
[334744662,1723530639275,-500.0,0.00013698,2]
[334744664,1723530639287,-500.0,0.00013698,2]
[334744666,1723530639296,-5657.10565598,0.00013698,2]
[334744668,1723530639306,-500.0,0.00013698,2]
[334744670,1723530639316,-500.0,0.00013698,2]
[334744672,1723530639325,-500.0,0.00013698,2]
[334744674,1723530639335,-500.0,0.00013698,2]
[334744676,1723530639344,-500.0,0.00013698,2]
[334744678,1723530639354,-572.28,0.00013698,2]
[334744680,1723530639363,-500.0,0.00013698,2]
[334744682,1723530639372,-500.0,0.00013698,2]
[334744684,1723530639384,-500.0,0.00013698,2]
[334744686,1723530639393,-500.0,0.00013698,2]
[334744688,1723530639403,-500.0,0.00013698,2]
[334744690,1723530639412,-284.84680017,0.00013698,2]
[334744692,1723530639422,-500.0,0.00013698,2]
[334744694,1723530639431,-500.0,0.00013698,2]
[334744709,1723530639582,-500.0,0.00013698,2]
[334744711,1723530639592,-675.36,0.00013698,2]
[334744713,1723530639601,-500.0,0.00013698,2]
[334744715,1723530639611,-500.0,0.00013698,2]
[334744717,1723530639620,-500.0,0.00013698,2]
[334744719,1723530639630,-500.0,0.00013698,2]
[334744721,1723530639639,-500.0,0.00013698,2]
[334744723,1723530639649,-539.29,0.00013698,2]
[334744725,1723530639658,-500.0,0.00013698,2]
[334744727,1723530639667,-500.0,0.00013698,2]
[334744729,1723530639676,-500.0,0.00013698,2]
[334744731,1723530639686,-754.62,0.00013698,2]
[334744732,1723530639695,-500.0,0.00013698,2]
[334744734,1723530639704,-500.0,0.00013698,2]
[334744737,1723530639714,-500.0,0.00013698,2]
[334744738,1723530639723,-500.0,0.00013698,2]
[334744741,1723530639733,-500.0,0.00013698,2]
[334744742,1723530639743,-500.0,0.00013698,2]
[334744744,1723530639753,-500.0,0.00013698,2]
[334744746,1723530639765,-646.18,0.00013698,2]
[334744748,1723530639775,-500.0,0.00013698,2]
[334744751,1723530639785,-500.0,0.00013698,2]
[334744753,1723530639794,-500.0,0.00013698,2]
[334744755,1723530639803,-500.0,0.00013698,2]
[334744757,1723530639813,-500.0,0.00013698,2]
[334744759,1723530639822,-500.0,0.00013698,2]
[334744761,1723530639832,-500.0,0.00013698,2]
[334744762,1723530639841,-517.74,0.00013698,2]
[334744765,1723530639851,-575.4,0.00013698,2]
[334744766,1723530639864,-500.0,0.00013698,2]
[334744768,1723530639873,-500.0,0.00013698,2]
[334744770,1723530639884,-739.75,0.00013698,2]
[334744773,1723530639895,-500.0,0.00013698,2]
[334744774,1723530639905,-761.63,0.00013698,2]
[334744777,1723530639916,-2019.02,0.00013698,2]
[334744779,1723530639928,-500.0,0.00013698,2]
[334744781,1723530639939,-500.0,0.00013698,2]
[334744783,1723530639951,-500.0,0.00013698,2]
[334744785,1723530639961,-555.7,0.00013698,2]
[334744788,1723530639970,-2633.0,0.00013698,2]
[334744790,1723530639979,-284.30155513,0.00013698,2]
[334744793,1723530639990,-500.0,0.00013698,2]
[334744797,1723530639999,-1041.71,0.00013698,2]
[334744799,1723530640009,-500.0,0.00013698,2]
[334744801,1723530640018,-500.0,0.00013698,2]
[334744803,1723530640027,-500.0,0.00013698,2]
[334744805,1723530640039,-500.0,0.00013698,2]
[334744807,1723530640049,-705.04,0.00013698,2]
[334744809,1723530640058,-880.12,0.00013698,2]
[334744811,1723530640067,-842.98,0.00013698,2]
[334744813,1723530640076,-597.63,0.00013698,2]
[334744815,1723530640086,-200.34955745,0.00013698,2]
[334744817,1723530640095,-500.0,0.00013698,2]
[334744819,1723530640105,-500.0,0.00013698,2]
[334744821,1723530640114,-500.0,0.00013698,2]
[334744822,1723530640123,-742.07,0.00013698,2]
[334744824,1723530640133,-500.0,0.00013698,2]
[334744826,1723530640143,-500.0,0.00013698,2]
[334744829,1723530640152,-500.0,0.00013698,2]
[334744831,1723530640162,-989.97,0.00013698,2]
[334744833,1723530640171,-500.0,0.00013698,2]
[334744835,1723530640181,-500.0,0.00013698,2]
[334744837,1723530640190,-500.0,0.00013698,2]
[334744839,1723530640200,-500.0,0.00013698,2]
[334744840,1723530640209,-4930.16,0.00013698,2]
[334744842,1723530640218,-500.0,0.00013698,2]
[334744844,1723530640227,-500.0,0.00013698,2]
[334744847,1723530640237,-917.25,0.00013698,2]
[334744849,1723530640247,-500.0,0.00013698,2]
[334744850,1723530640258,-1207.27,0.00013698,2]
[334744853,1723530640267,-500.0,0.00013698,2]
[334744855,1723530640278,-3746.73,0.00013698,2]
[334744857,1723530640289,-1125.72,0.00013698,2]
[334744859,1723530640299,-3816.57,0.00013698,2]
[334744861,1723530640308,-500.0,0.00013698,2]
[334744862,1723530640317,-884.4,0.00013698,2]
[334744865,1723530640328,-1115.79,0.00013698,2]
[334744867,1723530640337,-1061.83,0.00013698,2]
[334744869,1723530640346,-1641.17,0.00013698,2]
[334744871,1723530640356,-500.0,0.00013698,2]
[334744873,1723530640366,-986.6,0.00013698,2]
[334744875,1723530640376,-1342.02,0.00013698,2]
[334744877,1723530640386,-940.88,0.00013698,2]
[334744879,1723530640396,-500.0,0.00013698,2]
[334744881,1723530640406,-500.0,0.00013698,2]
[334744883,1723530640416,-500.0,0.00013698,2]
[334744885,1723530640424,-3416.39,0.00013698,2]
[334744887,1723530640434,-523.04,0.00013698,2]
[334744889,1723530640444,-321.49756004,0.00013698,2]
[334744891,1723530640454,-500.0,0.00013698,2]
[334744892,1723530640463,-500.0,0.00013698,2]